[Event "Late-Titled-Tuesday-Blitz-November-28-2023"]
[Site "Chess.com"]
[Date "2023.11.28"]
[Round "3"]
[White "whitemirrorninja"]
[Black "JSPrepz"]
[Result "0-1"]
[WhiteElo "2538"]
[BlackElo "2850"]
[TimeControl "180+1"]
[EndTime "14:26:39 PST"]
[Termination "JSPrepz won by resignation"]

1. e4 {[%clk 0:03:00.9]} 1... e5 {[%clk 0:02:59.9]} 2. Nf3 {[%clk 0:03:00.6]}
2... Nc6 {[%clk 0:03:00.6]} 3. Nc3 {[%clk 0:03:01]} 3... Nf6 {[%clk 0:02:59.9]}
4. Be2 {[%clk 0:03:01.6]} 4... Bb4 {[%clk 0:02:58.8]} 5. Nd5 {[%clk 0:03:01.2]}
5... Bc5 {[%clk 0:02:59.1]} 6. d3 {[%clk 0:03:01.2]} 6... h6 {[%clk 0:02:58.3]}
7. c3 {[%clk 0:02:59.5]} 7... d6 {[%clk 0:02:58.7]} 8. b4 {[%clk 0:02:56.3]}
8... Bb6 {[%clk 0:02:58.1]} 9. a4 {[%clk 0:02:57]} 9... a5 {[%clk 0:02:55.3]}
10. b5 {[%clk 0:02:57.3]} 10... Nxd5 {[%clk 0:02:53.7]} 11. bxc6 {[%clk
0:02:57.1]} 11... Nxc3 {[%clk 0:02:52.8]} 12. cxb7 {[%clk 0:02:52.2]} 12... Bxb7
{[%clk 0:02:53.7]} 13. Qb3 {[%clk 0:02:48.5]} 13... Nxe2 {[%clk 0:02:53.1]} 14.
Kxe2 {[%clk 0:02:49.4]} 14... Rb8 {[%clk 0:02:45.9]} 15. Qc4 {[%clk 0:02:44.1]}
15... O-O {[%clk 0:02:41.4]} 16. Rd1 {[%clk 0:02:43.3]} 16... d5 {[%clk
0:02:41.7]} 17. Qc2 {[%clk 0:02:41.8]} 17... Re8 {[%clk 0:02:37.8]} 18. Be3
{[%clk 0:02:40.8]} 18... Ba6 {[%clk 0:02:37.3]} 19. Ke1 {[%clk 0:02:34.6]} 19...
Bxe3 {[%clk 0:02:26.8]} 20. fxe3 {[%clk 0:02:33.6]} 20... Rb4 {[%clk 0:02:26.7]}
21. exd5 {[%clk 0:02:29.3]} 21... e4 {[%clk 0:02:22.9]} 22. dxe4 {[%clk
0:02:22.2]} 22... Rbxe4 {[%clk 0:02:23.8]} 23. Kf2 {[%clk 0:02:07]} 23... Rxe3
{[%clk 0:02:24.7]} 24. Kg1 {[%clk 0:02:07.2]} 24... Be2 {[%clk 0:02:19.8]} 25.
Re1 {[%clk 0:02:00.5]} 25... Bxf3 {[%clk 0:02:19.8]} 26. Rxe3 {[%clk 0:02:00.3]}
26... Rxe3 {[%clk 0:02:20.7]} 27. gxf3 {[%clk 0:01:53.9]} 27... Rxf3 {[%clk
0:02:08.2]} 28. Qg2 {[%clk 0:01:49.6]} 28... Rd3 {[%clk 0:02:05.8]} 29. Kh1
{[%clk 0:01:45.3]} 29... Rxd5 {[%clk 0:02:04.3]} 30. Rg1 {[%clk 0:01:39]} 30...
Rg5 {[%clk 0:02:04]} 31. Qc6 {[%clk 0:01:39.7]} 31... Rxg1+ {[%clk 0:02:01.4]}
32. Kxg1 {[%clk 0:01:40.6]} 32... Qd4+ {[%clk 0:02:00.9]} 33. Kg2 {[%clk
0:01:39.4]} 33... Qb6 {[%clk 0:01:58.2]} 34. Qe8+ {[%clk 0:01:29.6]} 34... Kh7
{[%clk 0:01:58.5]} 35. h4 {[%clk 0:01:21.6]} 35... Qg6+ {[%clk 0:01:55.6]} 36.
Kf3 {[%clk 0:01:18]} 36... Qf5+ {[%clk 0:01:55.8]} 37. Kg3 {[%clk 0:01:17.3]}
37... c5 {[%clk 0:01:54.3]} 38. Qb5 {[%clk 0:01:08.3]} 38... Qe5+ {[%clk
0:01:51.9]} 39. Kf3 {[%clk 0:01:06.7]} 39... Qc3+ {[%clk 0:01:50.7]} 40. Kg2
{[%clk 0:01:06.6]} 40... Qc2+ {[%clk 0:01:44.6]} 41. Kg3 {[%clk 0:01:04.3]}
41... Qc3+ {[%clk 0:01:44.3]} 42. Kg2 {[%clk 0:01:03.5]} 42... Qb4 {[%clk
0:01:28.4]} 43. Qd7 {[%clk 0:00:47.6]} 43... Qb2+ {[%clk 0:01:26.1]} 44. Kg3
{[%clk 0:00:43.1]} 44... Qe5+ {[%clk 0:01:24.4]} 45. Kg2 {[%clk 0:00:41.1]}
45... Qe4+ {[%clk 0:01:23.8]} 46. Kg3 {[%clk 0:00:40.3]} 46... Qg6+ {[%clk
0:01:23.8]} 47. Kf3 {[%clk 0:00:37.3]} 47... c4 {[%clk 0:01:24.7]} 48. Qc7
{[%clk 0:00:29.6]} 48... Qd3+ {[%clk 0:01:23.7]} 49. Kf2 {[%clk 0:00:23.8]}
49... c3 {[%clk 0:01:24.6]} 50. Qxf7 {[%clk 0:00:15.3]} 50... c2 {[%clk
0:01:24.5]} 51. Qc7 {[%clk 0:00:09.5]} 51... Qd2+ {[%clk 0:01:23.4]} 0-1

[Event "Late-Titled-Tuesday-Blitz-November-28-2023"]
[Site "Chess.com"]
[Date "2023.11.28"]
[Round "3"]
[White "VitaliyChayka"]
[Black "C_K_G"]
[Result "1-0"]
[WhiteElo "2423"]
[BlackElo "2180"]
[TimeControl "180+1"]
[EndTime "14:26:41 PST"]
[Termination "VitaliyChayka won by resignation"]

1. d4 {[%clk 0:02:55.4]} 1... d5 {[%clk 0:02:59.2]} 2. Bf4 {[%clk 0:02:54.2]}
2... e6 {[%clk 0:02:59.1]} 3. e3 {[%clk 0:02:52.7]} 3... Nf6 {[%clk 0:02:59.7]}
4. Nd2 {[%clk 0:02:51.5]} 4... Bd6 {[%clk 0:03:00.3]} 5. Bg3 {[%clk 0:02:51.1]}
5... c5 {[%clk 0:03:00.4]} 6. c3 {[%clk 0:02:50]} 6... Nc6 {[%clk 0:03:00.3]} 7.
Ngf3 {[%clk 0:02:49.4]} 7... Qc7 {[%clk 0:03:00.4]} 8. dxc5 {[%clk 0:02:44.7]}
8... Bxg3 {[%clk 0:02:59.3]} 9. hxg3 {[%clk 0:02:45.6]} 9... e5 {[%clk
0:02:58.8]} 10. b4 {[%clk 0:02:42.8]} 10... a6 {[%clk 0:02:58]} 11. Be2 {[%clk
0:02:40.4]} 11... h6 {[%clk 0:02:57.3]} 12. a3 {[%clk 0:02:38.3]} 12... O-O
{[%clk 0:02:56.5]} 13. O-O {[%clk 0:02:36.6]} 13... Be6 {[%clk 0:02:45.7]} 14.
Qc2 {[%clk 0:02:35.9]} 14... Rad8 {[%clk 0:02:37.6]} 15. Rfd1 {[%clk 0:02:33.5]}
15... Qe7 {[%clk 0:02:36.5]} 16. e4 {[%clk 0:02:28.2]} 16... d4 {[%clk 0:02:27]}
17. cxd4 {[%clk 0:02:27]} 17... exd4 {[%clk 0:02:25.3]} 18. Bd3 {[%clk
0:02:24.4]} 18... Ng4 {[%clk 0:02:23.6]} 19. Nc4 {[%clk 0:02:21.5]} 19... Qf6
{[%clk 0:02:05.6]} 20. Rab1 {[%clk 0:02:16.8]} 20... Bxc4 {[%clk 0:01:51.2]} 21.
Bxc4 {[%clk 0:02:12.3]} 21... Nce5 {[%clk 0:01:50.7]} 22. Nxe5 {[%clk
0:02:11.3]} 22... Qxe5 {[%clk 0:01:49.9]} 23. Bd5 {[%clk 0:02:08.9]} 23... Qh5
{[%clk 0:01:49.1]} 24. Kf1 {[%clk 0:02:01]} 24... Qh1+ {[%clk 0:01:44.7]} 25.
Ke2 {[%clk 0:01:59.9]} 25... Qxg2 {[%clk 0:01:44.8]} 26. Rf1 {[%clk 0:01:56.6]}
26... Ne3 {[%clk 0:01:38]} 27. Qd3 {[%clk 0:01:45.3]} 27... Nxf1 {[%clk
0:01:33.7]} 28. Rxf1 {[%clk 0:01:46.2]} 28... Rxd5 {[%clk 0:01:33.5]} 29. exd5
{[%clk 0:01:43.5]} 29... Re8+ {[%clk 0:01:33.5]} 30. Kd2 {[%clk 0:01:41.3]}
30... Qxd5 {[%clk 0:01:33.6]} 31. Rc1 {[%clk 0:01:27.8]} 31... Re6 {[%clk
0:01:18.5]} 32. Rc4 {[%clk 0:01:23.2]} 32... Re4 {[%clk 0:01:04.8]} 33. f3
{[%clk 0:01:21.6]} 33... Re3 {[%clk 0:00:59.2]} 34. Qxd4 {[%clk 0:01:20.5]}
34... Qxd4+ {[%clk 0:00:52.9]} 35. Rxd4 {[%clk 0:01:21.4]} 35... Rxa3 {[%clk
0:00:46.3]} 36. Rd7 {[%clk 0:01:20]} 36... a5 {[%clk 0:00:45.3]} 37. b5 {[%clk
0:01:17]} 37... Kf8 {[%clk 0:00:23.6]} 38. Rxb7 {[%clk 0:01:16.5]} 38... Ke8
{[%clk 0:00:23.6]} 39. c6 {[%clk 0:01:16.6]} 39... Kd8 {[%clk 0:00:19.4]} 40. b6
{[%clk 0:01:14.9]} 40... Rxf3 {[%clk 0:00:13.6]} 41. Rb8+ {[%clk 0:01:07.7]}
41... Ke7 {[%clk 0:00:13.8]} 42. c7 {[%clk 0:01:07.5]} 1-0

[Event "Late-Titled-Tuesday-Blitz-November-28-2023"]
[Site "Chess.com"]
[Date "2023.11.28"]
[Round "3"]
[White "drdaro"]
[Black "DvaHrasta"]
[Result "1-0"]
[WhiteElo "2254"]
[BlackElo "2507"]
[TimeControl "180+1"]
[EndTime "14:26:42 PST"]
[Termination "drdaro won on time"]

1. d4 {[%clk 0:02:56.1]} 1... Nf6 {[%clk 0:02:59.2]} 2. Nf3 {[%clk 0:02:53.6]}
2... e6 {[%clk 0:02:58.9]} 3. Nbd2 {[%clk 0:02:49.1]} 3... d5 {[%clk 0:02:56.2]}
4. g3 {[%clk 0:02:48]} 4... c5 {[%clk 0:02:54.1]} 5. Bg2 {[%clk 0:02:48.9]} 5...
Nc6 {[%clk 0:02:53.3]} 6. e3 {[%clk 0:02:47.6]} 6... Qb6 {[%clk 0:02:51.2]} 7.
dxc5 {[%clk 0:02:44.8]} 7... Bxc5 {[%clk 0:02:50.1]} 8. O-O {[%clk 0:02:44.5]}
8... O-O {[%clk 0:02:49.5]} 9. b3 {[%clk 0:02:44.9]} 9... a5 {[%clk 0:02:40.8]}
10. a3 {[%clk 0:02:31.6]} 10... Ne4 {[%clk 0:02:27.7]} 11. Bb2 {[%clk
0:02:30.6]} 11... f5 {[%clk 0:02:17.7]} 12. Qe2 {[%clk 0:02:19.3]} 12... Bd7
{[%clk 0:02:11.2]} 13. c4 {[%clk 0:02:18.2]} 13... Be8 {[%clk 0:01:54.7]} 14.
Rab1 {[%clk 0:02:11.2]} 14... Bh5 {[%clk 0:01:53.3]} 15. cxd5 {[%clk 0:02:05.4]}
15... exd5 {[%clk 0:01:52.2]} 16. Qd3 {[%clk 0:02:06]} 16... Rad8 {[%clk
0:01:42.8]} 17. Nd4 {[%clk 0:02:00.5]} 17... Ne5 {[%clk 0:01:35.2]} 18. Qc2
{[%clk 0:01:57.1]} 18... Rc8 {[%clk 0:01:27.1]} 19. Nxe4 {[%clk 0:01:39.3]}
19... fxe4 {[%clk 0:01:16.4]} 20. Qd2 {[%clk 0:01:39.6]} 20... Nd3 {[%clk
0:01:06.5]} 21. Bc3 {[%clk 0:01:36.6]} 21... Ra8 {[%clk 0:01:01.5]} 22. b4
{[%clk 0:01:31.8]} 22... axb4 {[%clk 0:01:00.3]} 23. axb4 {[%clk 0:01:32.7]}
23... Bd6 {[%clk 0:00:57.2]} 24. Bh3 {[%clk 0:01:32.3]} 24... Rae8 {[%clk
0:00:50.1]} 25. Be6+ {[%clk 0:01:28.7]} 25... Rxe6 {[%clk 0:00:46.6]} 26. Nxe6
{[%clk 0:01:29.6]} 26... Bxg3 {[%clk 0:00:41.7]} 27. fxg3 {[%clk 0:01:04.8]}
27... Rxf1+ {[%clk 0:00:33.5]} 28. Rxf1 {[%clk 0:01:03.8]} 28... Qxe6 {[%clk
0:00:33.4]} 29. Qa2 {[%clk 0:00:54.1]} 29... h6 {[%clk 0:00:15.2]} 30. Qa8+
{[%clk 0:00:52.4]} 30... Kh7 {[%clk 0:00:12.4]} 31. Qxb7 {[%clk 0:00:52.3]}
31... Qg6 {[%clk 0:00:08.9]} 32. Qxd5 {[%clk 0:00:47.4]} 32... Be2 {[%clk
0:00:08.6]} 33. Rf7 {[%clk 0:00:44.1]} 1-0

[Event "Late-Titled-Tuesday-Blitz-November-28-2023"]
[Site "Chess.com"]
[Date "2023.11.28"]
[Round "3"]
[White "ashookk"]
[Black "PNEPaul"]
[Result "1-0"]
[WhiteElo "2322"]
[BlackElo "1863"]
[TimeControl "180+1"]
[EndTime "14:26:42 PST"]
[Termination "ashookk won on time"]

1. Nf3 {[%clk 0:03:00.9]} 1... a6 {[%clk 0:02:58.9]} 2. d4 {[%clk 0:03:00]} 2...
d6 {[%clk 0:02:59]} 3. c4 {[%clk 0:02:59.5]} 3... g6 {[%clk 0:02:59.4]} 4. Nc3
{[%clk 0:02:59.7]} 4... h6 {[%clk 0:02:59.4]} 5. e4 {[%clk 0:02:58.6]} 5... Nd7
{[%clk 0:02:59.2]} 6. Be2 {[%clk 0:02:58.2]} 6... Bg7 {[%clk 0:02:59.3]} 7. O-O
{[%clk 0:02:58.1]} 7... e5 {[%clk 0:02:59.3]} 8. Be3 {[%clk 0:02:55.4]} 8... Ne7
{[%clk 0:02:59.1]} 9. Qd2 {[%clk 0:02:54.8]} 9... f5 {[%clk 0:02:59]} 10. dxe5
{[%clk 0:02:53.1]} 10... dxe5 {[%clk 0:02:58.4]} 11. exf5 {[%clk 0:02:44.2]}
11... gxf5 {[%clk 0:02:52.9]} 12. Qc2 {[%clk 0:02:43.5]} 12... O-O {[%clk
0:02:48.4]} 13. Rad1 {[%clk 0:02:42.6]} 13... c6 {[%clk 0:02:43.7]} 14. Qc1
{[%clk 0:02:29.5]} 14... Kh7 {[%clk 0:02:37.4]} 15. Rfe1 {[%clk 0:02:20.7]}
15... Qe8 {[%clk 0:02:34.2]} 16. Bd3 {[%clk 0:01:58.3]} 16... Qh5 {[%clk
0:02:26.2]} 17. Bb1 {[%clk 0:01:47.9]} 17... Ng6 {[%clk 0:01:53.9]} 18. Ne2
{[%clk 0:01:35.1]} 18... Nh4 {[%clk 0:01:34.8]} 19. Nxh4 {[%clk 0:01:26.5]}
19... Qxh4 {[%clk 0:01:34.4]} 20. Ng3 {[%clk 0:01:17]} 20... e4 {[%clk
0:01:16.7]} 21. f4 {[%clk 0:00:57.1]} 21... Nf6 {[%clk 0:01:09.7]} 22. Nf1
{[%clk 0:00:49.9]} 22... Ng4 {[%clk 0:01:04.1]} 23. g3 {[%clk 0:00:46.9]} 23...
Qh3 {[%clk 0:00:59.7]} 24. Bd4 {[%clk 0:00:42.6]} 24... Nf6 {[%clk 0:00:52]} 25.
Qc2 {[%clk 0:00:40]} 25... Be6 {[%clk 0:00:49.7]} 26. b3 {[%clk 0:00:39.2]}
26... Rfd8 {[%clk 0:00:48.4]} 27. Bc3 {[%clk 0:00:38.6]} 27... Kg8 {[%clk
0:00:18.2]} 28. Ne3 {[%clk 0:00:36.7]} 28... Kf7 {[%clk 0:00:12.8]} 29. Qg2
{[%clk 0:00:36.1]} 29... Qxg2+ {[%clk 0:00:11.8]} 30. Kxg2 {[%clk 0:00:37]} 1-0

[Event "Late-Titled-Tuesday-Blitz-November-28-2023"]
[Site "Chess.com"]
[Date "2023.11.28"]
[Round "3"]
[White "serena-maria"]
[Black "stolencandy13"]
[Result "1-0"]
[WhiteElo "2335"]
[BlackElo "2538"]
[TimeControl "180+1"]
[EndTime "14:26:47 PST"]
[Termination "serena-maria won on time"]

1. e4 {[%clk 0:03:00.9]} 1... c6 {[%clk 0:03:00]} 2. d4 {[%clk 0:03:00.5]} 2...
d5 {[%clk 0:03:00.9]} 3. f3 {[%clk 0:03:00.6]} 3... Qb6 {[%clk 0:03:00.3]} 4.
Nc3 {[%clk 0:02:56.5]} 4... dxe4 {[%clk 0:02:59.8]} 5. fxe4 {[%clk 0:02:56.4]}
5... e5 {[%clk 0:03:00.7]} 6. Nf3 {[%clk 0:02:40.2]} 6... exd4 {[%clk
0:03:00.3]} 7. Qxd4 {[%clk 0:02:39.6]} 7... Qxd4 {[%clk 0:03:00]} 8. Nxd4 {[%clk
0:02:40.5]} 8... Bg4 {[%clk 0:02:58]} 9. h3 {[%clk 0:02:38.1]} 9... Bh5 {[%clk
0:02:57.9]} 10. Be3 {[%clk 0:02:34.6]} 10... Nd7 {[%clk 0:02:57.8]} 11. g4
{[%clk 0:02:33.6]} 11... Bg6 {[%clk 0:02:57.9]} 12. O-O-O {[%clk 0:02:32.4]}
12... Bb4 {[%clk 0:02:56.5]} 13. Nf5 {[%clk 0:02:28.5]} 13... Bxf5 {[%clk
0:02:41.5]} 14. exf5 {[%clk 0:02:25.3]} 14... Bxc3 {[%clk 0:02:41.6]} 15. bxc3
{[%clk 0:02:25]} 15... Ngf6 {[%clk 0:02:39.6]} 16. Bg2 {[%clk 0:02:23.3]} 16...
Nb6 {[%clk 0:02:27.4]} 17. Bc5 {[%clk 0:02:17.4]} 17... Nfd7 {[%clk 0:02:16.9]}
18. Rhe1+ {[%clk 0:02:11.9]} 18... Kd8 {[%clk 0:02:17.2]} 19. Be7+ {[%clk
0:02:02.4]} 19... Kc8 {[%clk 0:02:14.1]} 20. Bd6 {[%clk 0:02:01.2]} 20... Kd8
{[%clk 0:01:51.8]} 21. Re7 {[%clk 0:01:58.7]} 21... g6 {[%clk 0:00:35.5]} 22.
Rxf7 {[%clk 0:01:55.5]} 22... gxf5 {[%clk 0:00:35.9]} 23. gxf5 {[%clk
0:01:52.2]} 23... Rg8 {[%clk 0:00:29]} 24. Bf3 {[%clk 0:01:48.9]} 24... Nd5
{[%clk 0:00:26.8]} 25. Bxd5 {[%clk 0:01:45.2]} 25... cxd5 {[%clk 0:00:27.7]} 26.
Rxd5 {[%clk 0:01:43.1]} 26... Kc8 {[%clk 0:00:27.2]} 27. Bf4 {[%clk 0:01:33.6]}
27... Nb6 {[%clk 0:00:20.9]} 28. Rc5+ {[%clk 0:01:31.9]} 28... Kd8 {[%clk
0:00:18.9]} 29. Rxh7 {[%clk 0:01:10.1]} 29... Rc8 {[%clk 0:00:16.9]} 30. Bc7+
{[%clk 0:01:04.2]} 30... Rxc7 {[%clk 0:00:09.8]} 31. Rcxc7 {[%clk 0:01:03.9]}
31... Rg2 {[%clk 0:00:07.5]} 32. f6 {[%clk 0:00:57]} 32... Rf2 {[%clk
0:00:05.1]} 33. f7 {[%clk 0:00:44]} 1-0

[Event "Late-Titled-Tuesday-Blitz-November-28-2023"]
[Site "Chess.com"]
[Date "2023.11.28"]
[Round "3"]
[White "Zhigalko_Sergei"]
[Black "cthulhuuu"]
[Result "1-0"]
[WhiteElo "2910"]
[BlackElo "2488"]
[TimeControl "180+1"]
[EndTime "14:26:50 PST"]
[Termination "Zhigalko_Sergei won on time"]

1. e4 {[%clk 0:03:00.9]} 1... d6 {[%clk 0:02:59]} 2. d4 {[%clk 0:03:01.1]} 2...
Nf6 {[%clk 0:02:59.5]} 3. Nc3 {[%clk 0:03:01.5]} 3... c6 {[%clk 0:02:59.5]} 4.
Nf3 {[%clk 0:02:59.2]} 4... Bg4 {[%clk 0:02:59.4]} 5. h3 {[%clk 0:02:59.2]} 5...
Bh5 {[%clk 0:02:59.5]} 6. Be2 {[%clk 0:02:58.4]} 6... e6 {[%clk 0:02:59.6]} 7.
O-O {[%clk 0:02:58.3]} 7... d5 {[%clk 0:03:00]} 8. e5 {[%clk 0:02:55.8]} 8...
Nfd7 {[%clk 0:03:00.3]} 9. Nh2 {[%clk 0:02:15.7]} 9... Bxe2 {[%clk 0:02:58.8]}
10. Nxe2 {[%clk 0:02:08.9]} 10... c5 {[%clk 0:02:58.2]} 11. c3 {[%clk
0:02:09.4]} 11... Nc6 {[%clk 0:02:58.6]} 12. Be3 {[%clk 0:02:08.7]} 12... cxd4
{[%clk 0:02:58.3]} 13. cxd4 {[%clk 0:02:08.9]} 13... Qb6 {[%clk 0:02:58.1]} 14.
b3 {[%clk 0:01:55.5]} 14... Rc8 {[%clk 0:02:56.5]} 15. Nf4 {[%clk 0:01:54.8]}
15... Ba3 {[%clk 0:02:49.1]} 16. Qg4 {[%clk 0:01:50.1]} 16... g6 {[%clk
0:02:35.6]} 17. Nf3 {[%clk 0:01:31.6]} 17... Ne7 {[%clk 0:02:13]} 18. Bc1 {[%clk
0:01:15.5]} 18... Bb4 {[%clk 0:02:06.1]} 19. Nd3 {[%clk 0:01:08]} 19... Bc3
{[%clk 0:02:02.5]} 20. Bb2 {[%clk 0:01:06.7]} 20... Bxb2 {[%clk 0:01:48]} 21.
Nxb2 {[%clk 0:01:07.6]} 21... O-O {[%clk 0:01:41.8]} 22. Rfe1 {[%clk 0:00:56.8]}
22... Rc2 {[%clk 0:01:31]} 23. Nd3 {[%clk 0:00:56.9]} 23... Rfc8 {[%clk
0:01:30.1]} 24. Qf4 {[%clk 0:00:53.6]} 24... Qa6 {[%clk 0:00:07.2]} 25. Nb4
{[%clk 0:00:53]} 25... Qa5 {[%clk 0:00:03.3]} 26. Nxc2 {[%clk 0:00:52.9]} 26...
Rxc2 {[%clk 0:00:04.2]} 27. Rec1 {[%clk 0:00:51.4]} 27... Qc3 {[%clk 0:00:03.3]}
28. Rxc2 {[%clk 0:00:49.6]} 28... Qxa1+ {[%clk 0:00:03.5]} 29. Rc1 {[%clk
0:00:43.2]} 29... Qxa2 {[%clk 0:00:04]} 30. Rc7 {[%clk 0:00:43.8]} 30... Qb1+
{[%clk 0:00:03.8]} 31. Kh2 {[%clk 0:00:43.4]} 31... Qf5 {[%clk 0:00:02.2]} 32.
Qxf5 {[%clk 0:00:43]} 1-0

[Event "Late-Titled-Tuesday-Blitz-November-28-2023"]
[Site "Chess.com"]
[Date "2023.11.28"]
[Round "3"]
[White "maurovargas01"]
[Black "PushingpawnsNYC"]
[Result "0-1"]
[WhiteElo "1841"]
[BlackElo "2316"]
[TimeControl "180+1"]
[EndTime "14:26:51 PST"]
[Termination "PushingpawnsNYC won by checkmate"]

1. e4 {[%clk 0:02:59.1]} 1... c5 {[%clk 0:02:36.7]} 2. Nc3 {[%clk 0:02:45.5]}
2... a6 {[%clk 0:02:33.8]} 3. f4 {[%clk 0:02:42.5]} 3... e6 {[%clk 0:02:32.7]}
4. Nf3 {[%clk 0:02:43.4]} 4... b5 {[%clk 0:02:32.9]} 5. d3 {[%clk 0:02:42.7]}
5... b4 {[%clk 0:02:32.3]} 6. Ne2 {[%clk 0:02:42.2]} 6... Bb7 {[%clk 0:02:33.2]}
7. g4 {[%clk 0:02:40]} 7... Ke7 {[%clk 0:02:34.1]} 8. Bg2 {[%clk 0:02:34.7]}
8... d6 {[%clk 0:02:30.4]} 9. O-O {[%clk 0:02:33.7]} 9... Nc6 {[%clk 0:02:26.1]}
10. c3 {[%clk 0:02:21.5]} 10... a5 {[%clk 0:02:22.2]} 11. f5 {[%clk 0:02:16.8]}
11... Nf6 {[%clk 0:02:17.4]} 12. fxe6 {[%clk 0:02:10.5]} 12... fxe6 {[%clk
0:02:10.7]} 13. Qe1 {[%clk 0:02:07.9]} 13... Ba6 {[%clk 0:01:49.2]} 14. c4
{[%clk 0:02:00.7]} 14... e5 {[%clk 0:01:37.8]} 15. Qh4 {[%clk 0:01:41.2]} 15...
Kd7 {[%clk 0:01:32.6]} 16. g5 {[%clk 0:01:37.6]} 16... Ne8 {[%clk 0:01:18.5]}
17. Bh3+ {[%clk 0:01:37]} 17... Kc7 {[%clk 0:01:17.6]} 18. a3 {[%clk 0:01:31.8]}
18... Be7 {[%clk 0:01:13]} 19. Qg4 {[%clk 0:01:26.7]} 19... Bc8 {[%clk
0:01:10.4]} 20. Qg3 {[%clk 0:01:23]} 20... Bxh3 {[%clk 0:01:09.6]} 21. Qxh3
{[%clk 0:01:21.9]} 21... Qd7 {[%clk 0:01:09.6]} 22. axb4 {[%clk 0:01:17.3]}
22... Qxh3 {[%clk 0:01:05.8]} 23. b5 {[%clk 0:00:50.8]} 23... Nb4 {[%clk
0:00:47.2]} 24. Nc3 {[%clk 0:00:49.4]} 24... Rf8 {[%clk 0:00:41.5]} 25. Nd2
{[%clk 0:00:26.3]} 25... Nc2 {[%clk 0:00:28.4]} 26. Ra4 {[%clk 0:00:22.1]} 26...
Ne3 {[%clk 0:00:21.2]} 27. Rxf8 {[%clk 0:00:10]} 27... Qg2# {[%clk 0:00:18.7]}
0-1

[Event "Late-Titled-Tuesday-Blitz-November-28-2023"]
[Site "Chess.com"]
[Date "2023.11.28"]
[Round "3"]
[White "Teidi96"]
[Black "nindjaxx8"]
[Result "1-0"]
[WhiteElo "2272"]
[BlackElo "2458"]
[TimeControl "180+1"]
[EndTime "14:26:58 PST"]
[Termination "Teidi96 won by checkmate"]

1. e4 {[%clk 0:03:00.9]} 1... e6 {[%clk 0:02:59.5]} 2. d4 {[%clk 0:02:51.3]}
2... d5 {[%clk 0:03:00.4]} 3. Nd2 {[%clk 0:02:51.2]} 3... c5 {[%clk 0:02:59.6]}
4. exd5 {[%clk 0:02:51]} 4... Qxd5 {[%clk 0:03:00.5]} 5. Ngf3 {[%clk 0:02:51.6]}
5... cxd4 {[%clk 0:03:01]} 6. Bc4 {[%clk 0:02:50.6]} 6... Qd6 {[%clk 0:03:01.2]}
7. Qe2 {[%clk 0:02:51.4]} 7... Nc6 {[%clk 0:02:58.5]} 8. Nb3 {[%clk 0:02:51.7]}
8... Nf6 {[%clk 0:02:57.7]} 9. Bg5 {[%clk 0:02:50.4]} 9... e5 {[%clk 0:02:52.1]}
10. O-O-O {[%clk 0:02:47.3]} 10... Bg4 {[%clk 0:02:52.5]} 11. h3 {[%clk
0:02:45.4]} 11... Bxf3 {[%clk 0:02:52.1]} 12. Qxf3 {[%clk 0:02:43.6]} 12...
O-O-O {[%clk 0:02:50.8]} 13. Bxf7 {[%clk 0:02:37.7]} 13... Be7 {[%clk
0:02:50.6]} 14. Bc4 {[%clk 0:02:33]} 14... Rhf8 {[%clk 0:02:47.9]} 15. Qe2
{[%clk 0:02:33.6]} 15... Nd5 {[%clk 0:02:40.8]} 16. Bxe7 {[%clk 0:02:30]} 16...
Ncxe7 {[%clk 0:02:30.4]} 17. Rhe1 {[%clk 0:02:27.7]} 17... Nc6 {[%clk
0:02:30.3]} 18. Bxd5 {[%clk 0:01:56.1]} 18... Qxd5 {[%clk 0:02:29.5]} 19. f3
{[%clk 0:01:56.7]} 19... a5 {[%clk 0:02:22.3]} 20. Qe4 {[%clk 0:01:55.3]} 20...
Qc4 {[%clk 0:02:22.5]} 21. Kb1 {[%clk 0:01:53.5]} 21... a4 {[%clk 0:02:19]} 22.
Nd2 {[%clk 0:01:52.8]} 22... Qb4 {[%clk 0:02:17.3]} 23. a3 {[%clk 0:01:53.3]}
23... Qb6 {[%clk 0:02:13.1]} 24. Nc4 {[%clk 0:01:49.4]} 24... Qb5 {[%clk
0:01:59.6]} 25. Nxe5 {[%clk 0:01:36.4]} 25... Na5 {[%clk 0:01:55.4]} 26. Qg4+
{[%clk 0:01:29]} 26... Kb8 {[%clk 0:01:55.2]} 27. Rxd4 {[%clk 0:01:25.3]} 27...
Rxd4 {[%clk 0:01:36.1]} 28. Qxd4 {[%clk 0:01:24.9]} 28... Ka8 {[%clk 0:01:34.3]}
29. Qb4 {[%clk 0:01:16.3]} 29... Qxb4 {[%clk 0:01:09.4]} 30. axb4 {[%clk
0:01:17.2]} 30... Nc6 {[%clk 0:01:09.3]} 31. Nxc6 {[%clk 0:01:17.2]} 31... bxc6
{[%clk 0:01:10.2]} 32. Re7 {[%clk 0:01:17.3]} 32... Rf4 {[%clk 0:01:09.7]} 33.
Rxg7 {[%clk 0:01:10.6]} 33... Rxb4 {[%clk 0:01:09.1]} 34. Kc1 {[%clk 0:01:11.2]}
34... Rb5 {[%clk 0:01:08.2]} 35. Rxh7 {[%clk 0:01:09.4]} 35... Re5 {[%clk
0:01:08.7]} 36. Kb1 {[%clk 0:01:00.9]} 36... Re1+ {[%clk 0:01:07.2]} 37. Ka2
{[%clk 0:01:00.6]} 37... Re2 {[%clk 0:01:08.1]} 38. g4 {[%clk 0:00:59.3]} 38...
Rxc2 {[%clk 0:01:07.8]} 39. f4 {[%clk 0:00:58.3]} 39... c5 {[%clk 0:01:05.6]}
40. f5 {[%clk 0:00:56.8]} 40... c4 {[%clk 0:01:05.6]} 41. Ka3 {[%clk 0:00:56]}
41... Rf2 {[%clk 0:01:01.3]} 42. Rf7 {[%clk 0:00:53]} 42... Kb8 {[%clk
0:01:00.8]} 43. h4 {[%clk 0:00:52.6]} 43... Rf4 {[%clk 0:00:58.5]} 44. g5 {[%clk
0:00:52.8]} 44... Rxh4 {[%clk 0:00:58.5]} 45. g6 {[%clk 0:00:53.2]} 45... Rg4
{[%clk 0:00:58.7]} 46. g7 {[%clk 0:00:53.3]} 46... c3 {[%clk 0:00:56.4]} 47.
bxc3 {[%clk 0:00:51.3]} 47... Kc8 {[%clk 0:00:52.6]} 48. Rf8+ {[%clk 0:00:51.5]}
48... Kc7 {[%clk 0:00:26]} 49. g8=Q {[%clk 0:00:52.4]} 49... Rc4 {[%clk
0:00:26]} 50. Qxc4+ {[%clk 0:00:51.8]} 50... Kd7 {[%clk 0:00:26.9]} 51. Qe6+
{[%clk 0:00:51.3]} 51... Kc7 {[%clk 0:00:26.9]} 52. Rf7+ {[%clk 0:00:52.2]}
52... Kb8 {[%clk 0:00:26.9]} 53. Qe8# {[%clk 0:00:52.4]} 1-0